bitfinex-derivatives/quotes_BTCF0:USTF0_20240925
["timestamp","ask_amount","ask_price","bid_price","bid_amount"]
[1727231748154,0.13076294,64457.0,64456.0,0.33211706]
[1727231749141,0.13076294,64457.0,64456.0,0.4252019]
[1727231751553,0.13076294,64457.0,64456.0,0.33211706]
[1727231752742,0.13076294,64457.0,64456.0,0.42498359]
[1727231753540,0.13076294,64457.0,64456.0,0.44923618]
[1727231753737,0.13076294,64457.0,64456.0,0.35615134]
[1727231753941,0.13076294,64457.0,64456.0,0.44923618]
[1727231754351,0.438364,64460.0,64456.0,0.35615134]
[1727231754538,0.077564,64459.0,64458.0,0.077565]
[1727231754742,0.077564,64459.0,64458.0,0.19932536]
[1727231755747,0.077564,64459.0,64458.0,0.10181697]
[1727231756947,0.077564,64459.0,64458.0,0.1018169]
[1727231757148,0.078564,64459.0,64458.0,0.078565]
[1727231757544,0.079564,64459.0,64458.0,0.15613302]
[1727231757863,0.079564,64459.0,64458.0,0.078565]
[1727231758656,0.079564,64459.0,64458.0,0.15613302]
[1727231762044,0.002,64459.0,64458.0,0.15613302]
[1727231762254,0.002,64459.0,64458.0,0.52354511]
[1727231762663,0.002,64459.0,64458.0,1.02934511]
[1727231762870,0.0619047,64474.0,64459.0,0.077564]
[1727231763155,0.0619047,64475.0,64473.0,0.07754747]
[1727231763458,0.077545,64476.0,64471.0,0.09]
[1727231763459,0.077545,64476.0,64474.0,0.15197886]
[1727231763665,0.10278259,64476.0,64474.0,0.09]
[1727231763961,0.10278259,64476.0,64475.0,0.09671002]
[1727231764255,0.10278259,64476.0,64475.0,0.17425502]
[1727231764853,0.02523759,64476.0,64475.0,0.17425502]
[1727231765057,0.004,64476.0,64475.0,0.17425502]
[1727231765965,0.004,64476.0,64475.0,0.26705682]
[1727231766154,0.004,64476.0,64475.0,0.40804342]
[1727231766461,0.013,64476.0,64475.0,0.43228505]
[1727231766653,0.013,64476.0,64475.0,0.54685093]
[1727231766968,0.014,64476.0,64475.0,0.43228505]
[1727231767152,0.014,64476.0,64475.0,0.40804342]
[1727231767460,0.005,64476.0,64475.0,0.41104342]
[1727231767663,0.02451972,64481.0,64479.0,0.07754]
[1727231767859,0.09,64484.0,64479.0,0.15477282]
[1727231768158,0.167534,64484.0,64483.0,0.06178724]
[1727231768362,0.077534,64484.0,64482.0,0.06178724]
[1727231769298,0.077534,64484.0,64481.0,0.06178724]
[1727231769867,0.077536,64483.0,64481.0,0.06178724]
[1727231770362,0.077536,64483.0,64480.0,0.06178724]
[1727231770764,0.07744968,64481.0,64480.0,0.23167694]
[1727231771155,0.07744968,64481.0,64480.0,0.30921594]
[1727231771557,0.07744968,64481.0,64480.0,0.077539]
[1727231771762,0.07744968,64481.0,64480.0,0.31007842]
[1727231772263,0.001,64481.0,64480.0,0.31007842]
[1727231772470,0.001,64481.0,64480.0,0.31207842]
[1727231772970,0.001,64481.0,64480.0,0.31007842]
[1727231773269,0.001,64481.0,64480.0,0.31207842]
[1727231776251,0.078538,64481.0,64480.0,0.31207842]
[1727231778368,0.65678768,64481.0,64480.0,0.002]
[1727231778558,0.60447645,64481.0,64480.0,0.002]
[1727231778877,0.077544,64476.0,64475.0,0.0036]
[1727231779074,0.077546,64474.0,64473.0,0.06178724]
[1727231779364,0.14,64478.0,64476.0,0.23203142]
[1727231779755,0.077545,64475.0,64474.0,0.23203142]
[1727231779956,0.077545,64475.0,64469.0,0.42618724]
[1727231780169,0.077545,64475.0,64469.0,0.06538724]
[1727231780170,0.077551,64470.0,64469.0,0.06538724]
[1727231780361,0.077552,64469.0,64468.0,0.06178724]
[1727231780670,0.077552,64469.0,64467.0,0.23265642]
[1727231781066,0.077552,64469.0,64466.0,0.077555]
[1727231781565,0.077552,64469.0,64467.0,0.23251108]
[1727231782159,0.077552,64469.0,64467.0,0.29429832]
[1727231782860,0.077553,64468.0,64467.0,0.23251108]
[1727231783767,0.077553,64468.0,64467.0,0.31006608]
[1727231783971,0.078553,64468.0,64467.0,0.31006608]
[1727231784372,0.078553,64468.0,64467.0,0.3872989]
[1727231784666,0.001,64468.0,64467.0,0.3872989]
[1727231784975,0.001,64468.0,64467.0,0.87180857]
[1727231785266,0.3608,64474.0,64473.0,0.077547]
[1727231785468,0.3608,64474.0,64473.0,0.217547]
[1727231785660,0.3608,64474.0,64473.0,0.44993086]
[1727231786670,0.3668,64474.0,64473.0,0.62448319]
[1727231787473,0.3688,64474.0,64473.0,0.54729792]
[1727231788171,0.3628,64474.0,64473.0,0.54629792]
[1727231788468,0.3628,64474.0,64473.0,0.41029792]
[1727231788664,0.3628,64474.0,64473.0,0.40629792]
[1727231788864,0.3628,64474.0,64473.0,0.40929792]
[1727231789864,0.3618,64474.0,64473.0,0.40929792]
[1727231792564,0.3618,64474.0,64473.0,0.50198353]
[1727231792869,0.001,64474.0,64473.0,0.40929792]
[1727231793275,0.10263867,64478.0,64476.0,0.077543]
[1727231793474,0.077543,64478.0,64477.0,0.09636706]
[1727231793977,0.077543,64478.0,64477.0,0.09614475]
[1727231794173,0.077543,64478.0,64477.0,0.17368775]
[1727231794388,0.077537,64482.0,64481.0,0.077537]
[1727231794577,0.077537,64482.0,64481.0,0.17368175]
[1727231795775,0.082537,64482.0,64481.0,0.17468175]
[1727231796271,0.082537,64482.0,64481.0,0.17368175]
[1727231796272,0.077537,64482.0,64481.0,0.17368175]
[1727231796475,0.080537,64482.0,64481.0,0.17368175]
[1727231797678,0.081537,64482.0,64481.0,0.17368175]
[1727231797879,0.078537,64482.0,64481.0,0.17368175]
[1727231798679,0.078537,64482.0,64481.0,0.17354999]
[1727231800467,0.001,64482.0,64481.0,0.17354999]
[1727231803382,0.001,64482.0,64481.0,0.17354781]
[1727231803885,0.001,64482.0,64481.0,0.26354781]
[1727231808780,0.001,64482.0,64481.0,0.167537]
[1727231808979,0.02613664,64482.0,64481.0,0.167537]
[1727231809572,0.02613664,64482.0,64481.0,0.528337]
[1727231815891,0.02613664,64482.0,64481.0,0.5343674]
[1727231815892,0.001,64482.0,64481.0,0.5343674]
[1727231816284,0.001,64482.0,64481.0,0.64883996]
[1727231818882,0.001,64482.0,64481.0,0.5343674]
[1727231819087,0.001,64482.0,64481.0,0.64884917]
[1727231821482,0.001,64482.0,64481.0,0.5343674]
[1727231821682,0.001,64482.0,64481.0,0.6486089]
[1727231822495,0.001,64482.0,64481.0,0.2878089]
[1727231823984,0.001,64482.0,64481.0,0.1917785]
[1727231824383,0.02613601,64482.0,64481.0,0.1917785]
[1727231825192,0.0036,64488.0,64481.0,0.3998828]
[1727231825405,0.0036,64492.0,64491.0,0.077526]
[1727231825592,0.02479265,64493.0,64491.0,0.09]
[1727231825793,0.10851994,64497.0,64491.0,0.09]
[1727231825794,0.04498194,64492.0,64491.0,0.09]
[1727231825991,0.10851994,64499.0,64491.0,0.09]
[1727231826192,0.04406479,64498.0,64497.0,0.077519]
[1727231826501,0.038,64502.0,64501.0,0.077514]
[1727231826690,0.038,64502.0,64501.0,0.167514]
[1727231827004,0.08219385,64502.0,64501.0,0.167514]
[1727231827297,0.06285253,64502.0,64501.0,0.167514]
[1727231828906,0.06285253,64502.0,64501.0,0.077514]
[1727231829199,0.14036553,64502.0,64500.0,0.3608]
[1727231829498,0.077514,64501.0,64500.0,0.3608]
[1727231830000,0.167514,64501.0,64500.0,0.3608]
[1727231830505,0.167514,64501.0,64500.0,0.438315]
[1727231830506,0.244818,64501.0,64500.0,0.438315]
[1727231830890,0.167514,64501.0,64500.0,0.61291833]
[1727231831087,0.168514,64501.0,64500.0,0.61291833]
[1727231831287,0.168514,64501.0,64500.0,0.439315]
[1727231831615,0.168514,64501.0,64500.0,0.441315]
[1727231831996,0.078514,64501.0,64500.0,0.441315]
[1727231832393,0.168514,64501.0,64500.0,0.441315]
[1727231832696,0.168514,64501.0,64500.0,0.080515]
[1727231833194,0.168514,64501.0,64500.0,0.06483717]
[1727231836407,0.168514,64501.0,64500.0,0.003]
[1727231838301,0.168514,64501.0,64500.0,0.06483717]
[1727231838888,0.168514,64501.0,64500.0,0.003]
[1727231838889,0.26380765,64501.0,64500.0,0.003]
[1727231840195,0.28897263,64501.0,64500.0,0.003]
[1727231840703,0.19897263,64501.0,64500.0,0.080515]
[1727231841211,0.14775644,64501.0,64500.0,0.080515]
[1727231841502,0.25593905,64501.0,64500.0,0.080515]
[1727231841810,0.14775644,64501.0,64500.0,0.080515]
[1727231842113,0.25593906,64501.0,64500.0,0.080515]
[1727231842290,0.14775644,64501.0,64500.0,0.080515]
[1727231843991,0.1081887,64505.0,64500.0,0.3638]
[1727231844195,0.12402279,64510.0,64500.0,0.3638]
[1727231844196,0.1117887,64510.0,64503.0,0.077511]
[1727231844403,0.1081887,64510.0,64509.0,0.438304]
[1727231844600,0.0357,64517.0,64509.0,0.438304]
[1727231844601,0.1081887,64511.0,64510.0,0.077503]
[1727231844818,0.0036,64517.0,64516.0,0.077496]
[1727231844819,0.12402279,64517.0,64516.0,0.077496]
[1727231845104,0.05203165,64517.0,64516.0,0.077496]
[1727231845315,0.12402279,64520.0,64519.0,0.077492]
[1727231845504,0.05043838,64520.0,64519.0,0.077492]
[1727231846008,0.077487,64524.0,64519.0,0.077492]
[1727231846202,0.077487,64524.0,64523.0,0.0462851]
[1727231847210,0.077487,64524.0,64522.0,0.0462851]
[1727231847603,0.091487,64524.0,64520.0,0.07749]
[1727231847909,0.13082228,64524.0,64523.0,0.001]
[1727231848104,0.13082228,64524.0,64523.0,0.04726327]
[1727231849094,0.13082228,64524.0,64523.0,0.04724374]
[1727231849610,0.13082228,64524.0,64522.0,0.001]
[1727231850103,0.11682228,64524.0,64523.0,0.04625031]
[1727231850313,0.13082228,64524.0,64523.0,0.001]
[1727231850497,0.13082228,64524.0,64523.0,0.04725031]
[1727231850901,0.11682228,64524.0,64523.0,0.04725031]
[1727231851100,0.11682228,64524.0,64522.0,0.04625031]
[1727231851411,0.3608,64523.0,64522.0,0.001]
[1727231853513,0.3608,64523.0,64521.0,0.07749]
[1727231853716,0.3748,64523.0,64521.0,0.07749]
[1727231853909,0.3748,64523.0,64522.0,0.077489]
[1727231854300,0.3888,64523.0,64522.0,0.078489]
[1727231854805,0.3748,64523.0,64522.0,0.077489]
[1727231855002,0.028,64523.0,64522.0,0.077489]
[1727231855205,0.028,64523.0,64522.0,0.438289]
[1727231856200,0.014,64523.0,64522.0,0.438289]
[1727231856405,0.028,64523.0,64522.0,0.438289]
[1727231856612,0.028,64523.0,64522.0,0.439289]
[1727231857001,0.028,64523.0,64522.0,0.6718895]
[1727231857002,0.014,64523.0,64522.0,0.6718895]
[1727231857208,0.0036,64529.0,64528.0,0.077481]
[1727231857509,0.204874,64534.0,64530.0,0.077479]
[1727231858018,0.077475,64533.0,64530.0,0.077479]
[1727231859116,0.077475,64533.0,64531.0,0.077477]
[1727231860109,0.091475,64533.0,64531.0,0.077477]
[1727231860616,0.105475,64533.0,64531.0,0.077477]
[1727231860815,0.105475,64533.0,64531.0,0.078477]
[1727231861020,0.028,64533.0,64532.0,0.167477]
[1727231861219,0.09699706,64533.0,64532.0,0.167477]
[1727231862112,0.05311887,64533.0,64532.0,0.167477]
[1727231862521,0.10652008,64533.0,64532.0,0.167477]
[1727231862716,0.13163895,64533.0,64532.0,0.168477]
[1727231863021,0.14563895,64533.0,64532.0,0.168477]
[1727231863236,0.13059387,64533.0,64532.0,0.001]
[1727231863519,0.22059387,64533.0,64532.0,0.001]
[1727231864431,0.13059387,64533.0,64532.0,0.001]
[1727231864612,0.29806887,64533.0,64532.0,0.001]
[1727231864917,0.34191765,64533.0,64532.0,0.001]
[1727231865820,0.91491221,64533.0,64532.0,0.001]
[1727231866123,0.077481,64528.0,64527.0,0.0036]
[1727231866418,0.077487,64523.0,64522.0,0.0036]
[1727231866617,0.077493,64519.0,64517.0,0.081094]
[1727231866916,0.17005473,64519.0,64518.0,0.23396254]
[1727231867110,0.1951736,64519.0,64518.0,0.23396254]
[1727231867307,0.10261187,64519.0,64518.0,0.23396254]
[1727231869014,0.093493,64519.0,64518.0,0.23396254]
[1727231869418,0.083493,64519.0,64518.0,0.23396254]
[1727231869617,0.094493,64519.0,64518.0,0.23496254]
[1727231872124,0.094493,64519.0,64518.0,0.40904618]
[1727231873139,0.094493,64519.0,64518.0,0.33151834]
[1727231873629,0.094493,64519.0,64518.0,0.40901134]
[1727231874123,0.11974389,64519.0,64518.0,0.40901134]
[1727231877939,0.11974389,64519.0,64518.0,0.40911277]
[1727231878527,0.11974389,64519.0,64518.0,0.31245554]
[1727231879324,0.11974389,64519.0,64518.0,0.40911842]
[1727231883446,0.017,64519.0,64518.0,0.40911842]
[1727231884128,0.017,64519.0,64518.0,0.31245554]
[1727231884334,0.0036,64525.0,64524.0,0.077486]
[1727231884533,0.077482,64528.0,64526.0,0.077483]
[1727231885435,0.10200781,64528.0,64526.0,0.077483]
[1727231885731,0.11600781,64528.0,64526.0,0.077483]
[1727231886036,0.13000781,64528.0,64526.0,0.078483]
[1727231887033,0.05252581,64528.0,64527.0,0.077483]
[1727231887232,0.07764414,64528.0,64527.0,0.077483]
[1727231887433,0.05311833,64528.0,64527.0,0.077483]
[1727231887628,0.028,64528.0,64527.0,0.117083]
[1727231887830,0.1053614,64528.0,64527.0,0.117083]
[1727231888149,0.028,64528.0,64527.0,0.117083]
[1727231888430,0.028,64528.0,64527.0,0.118083]
[1727231888637,0.014,64528.0,64527.0,0.35182828]
[1727231888835,0.014,64528.0,64527.0,0.35282828]
[1727231891239,0.02512668,64534.0,64533.0,0.077475]
[1727231891531,0.0036,64541.0,64534.0,0.077474]
[1727231891733,0.0036,64541.0,64537.0,0.06178682]
[1727231891929,0.0385,64544.0,64537.0,0.06178682]
[1727231892941,0.444269,64538.0,64537.0,0.06278682]
[1727231893935,0.083469,64538.0,64537.0,0.06278682]
[1727231894138,0.10878885,64538.0,64537.0,0.06278682]
[1727231894438,0.10878885,64538.0,64537.0,0.14125782]
[1727231894439,0.03731985,64538.0,64537.0,0.14125782]
[1727231895140,0.03731985,64538.0,64537.0,0.169471]
[1727231895725,0.012,64538.0,64537.0,0.169471]
[1727231895930,0.012,64538.0,64537.0,0.24670466]
[1727231896127,0.012,64538.0,64537.0,0.169471]
[1727231896833,0.012,64538.0,64537.0,0.24670466]
[1727231897150,0.006,64538.0,64537.0,0.168471]
[1727231897334,0.011,64538.0,64537.0,0.169471]
[1727231897537,0.011,64538.0,64537.0,0.34238446]
[1727231897929,0.011,64538.0,64537.0,0.26515518]
[1727231898130,0.011,64538.0,64537.0,0.49716181]
[1727231898337,0.011,64538.0,64537.0,0.57433288]
[1727231898937,0.011,64538.0,64537.0,0.47869153]
[1727231899140,0.011,64538.0,64537.0,0.40152046]
[1727231900439,0.005,64538.0,64537.0,0.40052046]
[1727231900742,0.01,64538.0,64537.0,0.40152046]
[1727231901841,0.0036,64545.0,64544.0,0.077462]
[1727231902038,0.06185663,64548.0,64547.0,0.077459]
[1727231902240,0.02442334,64549.0,64548.0,0.077457]
[1727231902241,0.06185663,64549.0,64548.0,0.077457]
[1727231902544,0.0036,64556.0,64548.0,0.69729359]
[1727231902545,0.06185663,64554.0,64548.0,0.69729359]
[1727231902837,0.06185663,64555.0,64554.0,0.07745]
[1727231903039,0.06185663,64555.0,64553.0,0.4508]
[1727231903040,0.06185663,64557.0,64556.0,0.077448]
[1727231903238,0.06185663,64557.0,64553.0,0.4508]
[1727231903239,0.06185663,64560.0,64553.0,0.4508]
[1727231903446,0.06185663,64560.0,64559.0,0.167444]
[1727231904140,0.0744,64563.0,64559.0,0.167444]
[1727231904141,0.06185663,64561.0,64560.0,0.077443]
[1727231904443,0.06185663,64562.0,64560.0,0.077443]
[1727231905235,0.16121335,64563.0,64560.0,0.077443]
[1727231905636,0.16121335,64563.0,64561.0,0.077441]
[1727231905862,0.16121335,64563.0,64559.0,0.001]
[1727231905863,0.23865335,64563.0,64559.0,0.001]
[1727231906037,0.17679672,64563.0,64560.0,0.001]
[1727231906545,0.17679672,64563.0,64560.0,0.002]
[1727231907143,0.17679672,64563.0,64560.0,0.079442]
[1727231907542,0.17679672,64563.0,64561.0,0.001]
[1727231907946,0.17679672,64563.0,64561.0,0.078441]
[1727231908353,0.17679672,64563.0,64561.0,0.077441]
[1727231909231,0.02495672,64563.0,64562.0,0.077441]
[1727231909462,0.0036,64570.0,64569.0,0.077432]
[1727231909641,0.06280553,64571.0,64567.0,0.14]
[1727231909837,0.14023553,64571.0,64569.0,0.077431]
[1727231910741,0.077431,64570.0,64569.0,0.077431]
[1727231911041,0.06280553,64571.0,64563.0,0.0036]
[1727231911248,0.077434,64568.0,64565.0,0.077436]
[1727231911447,0.077434,64568.0,64566.0,0.077435]
[1727231911747,0.077434,64568.0,64567.0,0.001]
[1727231913644,0.077434,64568.0,64567.0,0.078435]
[1727231915151,0.077434,64568.0,64567.0,0.079435]
[1727231916851,0.515668,64568.0,64567.0,0.002]
[1727231917050,0.077435,64567.0,64559.0,0.0036]
[1727231917245,1.49593227,64568.0,64559.0,0.0036]
[1727231917246,0.438243,64560.0,64559.0,0.0036]
[1727231917440,0.38590432,64560.0,64556.0,0.077448]
[1727231917640,0.07701011,64557.0,64556.0,0.077448]
[1727231918046,0.15445611,64558.0,64556.0,0.077448]
[1727231918755,0.15445611,64558.0,64557.0,0.077447]
[1727231918756,0.07701011,64558.0,64557.0,0.077447]
[1727231919250,0.001,64558.0,64557.0,0.077447]
[1727231919456,0.02610839,64558.0,64557.0,0.077447]
[1727231919655,0.10355339,64558.0,64557.0,0.077447]
[1727231919851,0.15648158,64558.0,64557.0,0.078447]
[1727231920056,0.10455263,64558.0,64557.0,0.078447]
[1727231920357,0.10455263,64558.0,64557.0,0.079447]
[1727231921249,0.079445,64558.0,64557.0,0.079447]
[1727231921449,0.079445,64558.0,64557.0,0.002]
[1727231925254,0.079445,64558.0,64557.0,0.06373237]
[1727231925455,0.079445,64558.0,64557.0,0.002]
[1727231925758,0.10485089,64558.0,64557.0,0.002]
[1727231928648,0.154894,64557.0,64556.0,0.04624055]
[1727231928846,0.294894,64557.0,64556.0,0.04624055]
[1727231929044,0.294894,64557.0,64555.0,0.04624055]
[1727231929045,0.077448,64556.0,64555.0,0.04624055]
[1727231929248,0.43117216,64556.0,64546.0,0.08466]
[1727231929454,0.077459,64547.0,64546.0,0.0072]
[1727231929765,0.077459,64547.0,64544.0,0.3608]
[1727231929766,0.077461,64545.0,64544.0,0.3608]
[1727231930057,0.102573,64545.0,64544.0,0.3608]
[1727231932088,0.104573,64545.0,64544.0,0.3608]
[1727231932261,0.104573,64545.0,64544.0,0.003]
[1727231932959,0.19726572,64545.0,64544.0,0.003]
[1727231933856,0.33726572,64545.0,64544.0,0.003]
[1727231934065,0.31375955,64545.0,64544.0,0.003]
[1727231934278,0.39122055,64545.0,64544.0,0.003]
[1727231936355,0.32129584,64545.0,64544.0,0.003]
[1727231941063,0.68209584,64545.0,64544.0,0.003]
[1727231942765,0.68209584,64545.0,64539.0,0.0072]
[1727231942766,0.154934,64540.0,64539.0,0.0072]
[1727231942967,0.077472,64536.0,64535.0,0.0036]
[1727231943159,0.077473,64535.0,64532.0,0.04624055]
[1727231943465,0.077477,64532.0,64531.0,0.04624055]
[1727231944052,0.077479,64530.0,64529.0,0.06173237]
[1727231944566,0.077479,64530.0,64529.0,0.29567464]
[1727231944769,0.077479,64530.0,64529.0,0.06173237]
[1727231945671,0.077479,64530.0,64529.0,0.07573237]
[1727231945964,0.077473,64535.0,64529.0,0.027]
[1727231946158,0.077473,64535.0,64534.0,0.04625036]
[1727231946561,0.3608,64536.0,64534.0,0.04626037]
[1727231946765,0.3608,64536.0,64535.0,0.04626037]
[1727231946970,0.077473,64535.0,64534.0,0.04626037]
[1727231948064,0.07747,64538.0,64533.0,0.06167832]
[1727231948065,0.077474,64534.0,64533.0,0.06167832]
[1727231948571,0.077474,64534.0,64533.0,0.42249396]
[1727231948962,0.077474,64534.0,64533.0,0.3608]
[1727231949266,0.077474,64534.0,64533.0,0.4315004]
[1727231949670,0.077474,64534.0,64533.0,0.3698]
[1727231949872,0.077474,64534.0,64533.0,0.3828]
[1727231950066,0.077474,64534.0,64533.0,0.44450125]
[1727231950267,0.077474,64534.0,64533.0,0.3828]
[1727231950471,0.077474,64534.0,64533.0,0.460275]
[1727231951773,0.077474,64534.0,64533.0,0.099475]
[1727231952363,0.077474,64534.0,64533.0,0.022]
[1727231956486,0.077474,64534.0,64533.0,0.09917107]
[1727231957280,0.077474,64534.0,64533.0,0.19450191]
[1727231958184,0.077474,64534.0,64533.0,0.19459353]
[1727231958481,0.077474,64534.0,64533.0,0.09917107]
[1727231959072,0.077474,64534.0,64533.0,0.11744885]
[1727231962986,0.077474,64534.0,64533.0,0.19492385]
[1727231968187,0.077474,64534.0,64533.0,0.28760424]
[1727231969114,0.077474,64534.0,64533.0,0.21012924]
[1727231970488,0.077474,64534.0,64533.0,0.2101357]
[1727231973286,0.077474,64534.0,64533.0,0.022]
[1727231973477,0.13921599,64537.0,64533.0,0.11745899]
[1727231973691,0.13921599,64537.0,64534.0,0.07738068]
[1727231974990,0.13921599,64537.0,64534.0,0.08538068]
[1727231975191,0.13921599,64537.0,64536.0,0.077472]
[1727231977485,0.13921599,64537.0,64536.0,0.093472]
[1727231977885,0.16365882,64537.0,64536.0,0.093472]
[1727231978092,0.06174499,64537.0,64536.0,0.233472]
[1727231978307,0.0036,64542.0,64541.0,0.077466]
[1727231978488,0.3608,64547.0,64546.0,0.07746]
[1727231978690,0.3608,64547.0,64546.0,0.38977688]
[1727231978892,0.3608,64547.0,64546.0,0.33663809]
[1727231979294,0.3608,64547.0,64546.0,0.24167847]
[1727231979501,0.3608,64547.0,64546.0,0.07746]
[1727231980790,0.02517076,64548.0,64546.0,0.07746]
[1727231980988,0.077457,64549.0,64546.0,0.07746]
[1727231981236,0.077457,64549.0,64548.0,0.06179348]
[1727231981384,0.077457,64549.0,64548.0,0.0947615]
[1727231981590,0.0036,64554.0,64551.0,0.077454]
[1727231981799,0.077438,64564.0,64551.0,0.077454]
[1727231981800,0.3608,64557.0,64551.0,0.15470333]
[1727231981990,0.0355,64558.0,64555.0,0.06180102]
[1727231982190,0.0355,64558.0,64557.0,0.04633726]
[1727231982395,0.077449,64555.0,64554.0,0.06180102]
[1727231982606,0.077449,64555.0,64554.0,0.06178349]
[1727231982798,0.077449,64555.0,64551.0,0.077454]
[1727231982996,0.077449,64555.0,64554.0,0.06179317]
[1727231983206,0.077449,64555.0,64553.0,0.06179317]
[1727231983699,0.004,64554.0,64553.0,0.06179317]
[1727231983905,0.004,64554.0,64551.0,0.077454]
[1727231983906,0.004,64554.0,64552.0,0.06179317]
[1727231984395,0.077449,64555.0,64552.0,0.06179317]
[1727231984601,0.082449,64555.0,64553.0,0.001]
[1727231984790,0.084449,64555.0,64553.0,0.002]
[1727231985292,0.079449,64555.0,64553.0,0.001]
[1727231985494,0.007,64554.0,64552.0,0.001]
[1727231986598,0.007,64554.0,64553.0,0.04629335]
[1727231986806,0.002,64554.0,64553.0,0.04629335]
[1727231986994,0.002,64554.0,64553.0,0.04729335]
[1727231987697,0.005,64554.0,64553.0,0.04829335]
[1727231987905,0.005,64554.0,64553.0,0.079451]
[1727231988197,0.005,64554.0,64553.0,0.12472856]
[1727231988399,0.007,64554.0,64553.0,0.079451]
[1727231990412,0.06876003,64554.0,64553.0,0.079451]
[1727231991128,0.09429298,64554.0,64553.0,0.079451]
[1727231991708,0.06876003,64554.0,64553.0,0.079451]
[1727231994724,0.007,64554.0,64553.0,0.079451]
[1727231998213,0.3644,64560.0,64559.0,0.077444]
[1727231998416,0.3644,64560.0,64559.0,0.12371659]
[1727231998417,0.3608,64560.0,64559.0,0.12371659]
[1727232000012,0.3608,64560.0,64559.0,0.12471659]
[1727232000222,0.3608,64560.0,64559.0,0.078444]
[1727232000515,0.3608,64560.0,64559.0,0.079444]
[1727232001816,0.3608,64560.0,64559.0,0.14114079]
[1727232003101,0.38621898,64560.0,64559.0,0.14114079]
[1727232003309,0.46366198,64560.0,64559.0,0.002]
[1727232004521,0.54110498,64560.0,64559.0,0.002]
[1727232004709,0.077451,64553.0,64552.0,0.0036]
[1727232005010,0.077454,64551.0,64550.0,0.077455]
[1727232005210,0.09,64555.0,64545.0,0.0936]
[1727232005211,0.15469731,64556.0,64549.0,0.09]
[1727232005420,0.15469731,64556.0,64555.0,0.09]
[1727232005421,0.077449,64556.0,64555.0,0.09]
[1727232005721,0.077449,64556.0,64555.0,0.167449]
[1727232005906,0.077449,64556.0,64555.0,0.09]
[1727232006908,0.078449,64556.0,64555.0,0.091]
[1727232007103,0.078449,64556.0,64555.0,0.168449]
[1727232007619,0.079449,64556.0,64555.0,0.169449]
[1727232008506,0.079449,64556.0,64555.0,0.079449]
[1727232009214,0.079449,64556.0,64555.0,0.1257584]
[1727232009412,0.079449,64556.0,64555.0,0.079449]
[1727232009814,0.15669731,64556.0,64555.0,0.079449]
[1727232010118,0.07924831,64556.0,64555.0,0.079449]
[1727232010512,0.002,64556.0,64555.0,0.079449]
[1727232010702,0.07937928,64556.0,64555.0,0.079449]
[1727232011223,0.02710885,64556.0,64555.0,0.079449]
[1727232011518,0.002,64556.0,64555.0,0.17404017]
[1727232011915,0.002,64556.0,64555.0,0.2668584]
[1727232012317,0.002,64556.0,64555.0,0.28655892]
[1727232012708,0.02541898,64560.0,64555.0,0.51942679]
[1727232012910,0.081038,64565.0,64564.0,0.077438]
[1727232013105,0.077438,64565.0,64564.0,0.17200154]
[1727232014207,0.0357,64568.0,64564.0,0.21727541]
[1727232014415,0.001,64565.0,64564.0,0.21827488]
[1727232014614,0.001,64565.0,64564.0,0.23521027]
[1727232015119,0.001,64565.0,64564.0,0.31264827]
[1727232016016,0.001,64565.0,64564.0,0.09521027]
[1727232016229,0.078437,64565.0,64564.0,0.17242058]
[1727232016420,0.078437,64565.0,64564.0,0.07923867]
[1727232016614,0.077437,64565.0,64564.0,0.07923867]
[1727232017013,0.077437,64565.0,64564.0,0.07823867]
[1727232017221,0.077438,64564.0,64563.0,0.07723867]
[1727232017416,0.077438,64564.0,64563.0,0.17138433]
[1727232017612,0.077438,64564.0,64563.0,0.07723867]
[1727232017826,0.077439,64563.0,64562.0,0.07723867]
[1727232018020,0.077441,64562.0,64561.0,0.078242]
[1727232018226,0.077441,64562.0,64560.0,0.07723867]
[1727232018428,0.16076162,64561.0,64557.0,0.077446]
[1727232018610,0.12506162,64560.0,64557.0,0.077446]
[1727232018819,0.12506162,64559.0,64558.0,0.23091934]
[1727232019121,0.0713599,64559.0,64558.0,0.23091934]
[1727232019311,0.02510706,64559.0,64558.0,0.23091934]
[1727232019932,0.12506162,64559.0,64558.0,0.23091934]
[1727232020831,0.12506162,64559.0,64558.0,0.23191934]
[1727232022022,0.14884489,64559.0,64558.0,0.23191934]
[1727232022226,0.24879945,64559.0,64558.0,0.23191934]
[1727232022820,0.12506162,64559.0,64558.0,0.23191934]
[1727232023723,0.20250562,64559.0,64558.0,0.23891934]
[1727232023920,0.20250562,64559.0,64558.0,0.23991934]
[1727232024933,0.27258363,64559.0,64558.0,0.23991934]
[1727232025127,0.32628535,64559.0,64558.0,0.009]
[1727232025538,0.62459957,64559.0,64558.0,0.009]
[1727232025930,0.62417676,64559.0,64558.0,0.009]
[1727232026231,0.8701262,64559.0,64558.0,0.009]
[1727232026528,0.438244,64559.0,64558.0,0.009]
[1727232028133,0.438244,64559.0,64558.0,0.08623867]
[1727232028319,0.438244,64559.0,64558.0,0.009]
[1727232030024,0.438244,64559.0,64558.0,0.08623867]
[1727232030829,0.438244,64559.0,64558.0,0.18059828]
[1727232031029,0.438244,64559.0,64558.0,0.08623867]
[1727232031230,0.438244,64559.0,64558.0,0.18058457]
[1727232031533,0.438244,64559.0,64558.0,0.08623867]
[1727232031725,0.438244,64559.0,64558.0,0.009]
[1727232033327,0.515688,64559.0,64558.0,0.009]
[1727232033930,0.438244,64559.0,64558.0,0.009]
[1727232034128,0.515688,64559.0,64558.0,0.009]
[1727232034332,0.438244,64559.0,64558.0,0.009]
[1727232034522,0.077445,64558.0,64553.0,0.02468634]
[1727232034727,0.077456,64549.0,64548.0,0.0036]
[1727232034932,0.077456,64549.0,64540.0,0.3686]
[1727232034933,0.077461,64545.0,64543.0,0.17022626]
[1727232035128,0.077461,64545.0,64544.0,0.26134744]